[Event "2nd Irena Warakomska Memorial-A"]
[Site "Suwalki"]
[Date "2018.08.03"]
[Round "4"]
[White "Stupak, Kirill"]
[Black "Grib, Roman"]
[Result "1-0"]
[ECO "E20"]
[WhiteElo "2573"]
[BlackElo "2431"]
[Annotator "RC"]
[PlyCount "93"]
[EventDate "2018.08.01"]
[EventType "swiss"]
[EventCountry "POL"]
[SourceTitle "playchess.com"]
[Source "ChessBase"]
[SourceQuality "1"]
[TimeControl "40/5400+30:1800+30"]

1. d4 {[%emt 0:02:32]} Nf6 {[%emt 0:00:00]} 2. c4 {[%emt 0:00:04]} e6 {[%emt 0:00:32]} 3. Nc3 {[%emt 0:00:39]} Bb4 {[%emt 0:00:11]} 4. g3 {[%emt 0:00:05]} O-O {[%emt 0:02:32]} 5. Bg2 {[%emt 0:00:07]} d5 {[%emt 0:00:08]} 6. cxd5 {[%emt 0:00:05]} exd5 {[%emt 0:00:15]} 7. e3 {[%emt 0:00:05]} c6 {[%emt 0:02:13]} 8. Nge2 {[%emt 0:00:05]} Re8 {[%emt 0:00:05]} 9. O-O {[%emt 0:00:04]} Nbd7 {[%emt 0:01:05]} 10. f3 {[%emt 0:03:44]} c5 {[%emt 0:03:17]} 11. a3 {[%emt 0:01:06]} Ba5 {[%emt 0:00:42]} 12. b4 {[%emt 0:10:00]} cxd4 {[%emt 0:02:09]} 13. Nxd4 {[%emt 0:00:42]} Bb6 {[%emt 0:02:17]} 14. f4 {[%emt 0:00:50]} Nb8 {[%emt 0:10:26]} 15. Nb3 {[%emt 0:10:12]} Bxe3+ {[%emt 0:05:04]} 16. Bxe3 {[%emt 0:01:02]} Rxe3 {[%emt 0:00:05]} 17. Nxd5 {[%emt 0:01:25]} Nxd5 {[%emt 0:00:53]} 18. Qxd5 {[%emt 0:01:25]} Nc6 {[%emt 0:05:49]} 19. Nc5 {[%emt 0:08:46]} Rb8 {[%emt 0:17:05]} 20. Qxd8+ {[%emt 0:11:02]} Nxd8 {[%emt 0:00:04]} 21. f5 {[%emt 0:00:04]} g6 {[%emt 0:01:48]} 22. f6 {[%emt 0:03:26]} b6 {[%emt 0:01:46]} 23. Rfe1 {[%emt 0:07:57]} Rxe1+ {[%emt 0:00:17]} 24. Rxe1 {[%emt 0:00:01]} Ne6 {[%emt 0:09:09]} 25. Nd3 {[%emt 0:00:30]} Ba6 {[%emt 0:04:58]} 26. Ne5 {[%emt 0:00:16]} Rd8 {[%emt 0:03:01]} 27. Nc6 {[%emt 0:05:15]} Rd3 {[%emt 0:07:31]} 28. a4 {[%emt 0:00:12]} Kf8 {[%emt 0:00:50]} 29. Nxa7 {[%emt 0:02:11]} Rd7 {[%emt 0:00:22]} 30. Nc6 {[%emt 0:00:18]} Rd6 {[%emt 0:00:19]} 31. Rc1 {[%emt 0:05:07]} Ke8 {[%emt 0:02:12]} 32. h4 {[%emt 0:09:15]} Bb7 {[%emt 0:03:04]} 33. Ne5 {[%emt 0:09:22]} Bxg2 {[%emt 0:00:19]} 34. Kxg2 {[%emt 0:00:01]} Nd8 {[%emt 0:01:30]} 35. Rc8 {[%emt 0:02:02]} Re6 {[%emt 0:05:17]} 36. Nxf7 {[%emt 0:01:42]} Kxf7 {[%emt 0:00:11]} 37. Rxd8 {[%emt 0:00:01]} Re2+ {[%emt 0:01:43]} 38. Kf3 {[%emt 0:00:59]} Ra2 {[%emt 0:00:04]} 39. Rd6 {[%emt 0:00:47]} Rxa4 {[%emt 0:00:07]} 40. Rxb6 {[%emt 0:00:00]} Ra3+ {[%emt 0:00:00]} 41. Kf4 {[%emt 0:00:33]} h5 {[%emt 0:01:01]} 42. b5 {[%emt 0:12:51]} Rb3 {[%emt 0:00:40]} 43. Ke5 {[%emt 0:00:17]} Re3+ {[%emt 0:00:05]} 44. Kd6 {[%emt 0:00:10]} Rxg3 {[%emt 0:00:25]} 45. Rc6 {[%emt 0:01:23]} g5 {[%emt 0:06:23]} 46. hxg5 {[%emt 0:05:03]} Rxg5 {[%emt 0:00:05]} 47. b6 {[%emt 0:00:11]} 1-0

[Event "2nd Irena Warakomska Memorial-A"]
[Site "Suwalki"]
[Date "2018.08.03"]
[Round "4"]
[White "Bernadskiy, Vitaliy"]
[Black "Rahul, Srivatshav P"]
[Result "1-0"]
[ECO "E70"]
[WhiteElo "2544"]
[BlackElo "2388"]
[Annotator "RC"]
[PlyCount "131"]
[EventDate "2018.08.01"]
[EventType "swiss"]
[EventCountry "POL"]
[SourceTitle "playchess.com"]
[Source "ChessBase"]
[SourceQuality "1"]
[TimeControl "40/5400+30:1800+30"]

1. d4 {[%emt 0:02:05]} Nf6 {[%emt 0:00:00]} 2. c4 {[%emt 0:00:05]} g6 {[%emt 0:00:00]} 3. Nc3 {[%emt 0:00:04]} Bg7 {[%emt 0:00:04]} 4. e4 {[%emt 0:00:03]} d6 {[%emt 0:00:08]} 5. Nge2 {[%emt 0:00:16]} O-O {[%emt 0:00:19]} 6. Ng3 {[%emt 0:00:02]} e5 {[%emt 0:01:38]} 7. d5 {[%emt 0:00:04]} a5 {[%emt 0:00:30]} 8. Be2 {[%emt 0:00:49]} Na6 {[%emt 0:02:49]} 9. h4 {[%emt 0:00:08]} h5 {[%emt 0:02:41]} 10. Bg5 {[%emt 0:00:04]} Qe8 {[%emt 0:02:11]} 11. Qd2 {[%emt 0:00:27]} Nh7 {[%emt 0:00:41]} 12. Be3 {[%emt 0:01:20]} Bd7 {[%emt 0:04:38]} 13. O-O-O {[%emt 0:01:43]} a4 {[%emt 0:06:09]} 14. Rdg1 {[%emt 0:06:25]} Nc5 {[%emt 0:10:10]} 15. Bh6 {[%emt 0:18:28]} Qe7 {[%emt 0:20:54]} 16. Be3 {[%emt 0:12:31]} b6 {[%emt 0:05:27]} 17. Nf1 {[%emt 0:05:08]} f5 {[%emt 0:10:08]} 18. exf5 {[%emt 0:00:45]} gxf5 {[%emt 0:00:04]} 19. Ng3 f4 {[%emt 0:04:37]} 20. Bxc5 {[%emt 0:33:25]} fxg3 {[%emt 0:01:32]} 21. Be3 {[%emt 0:00:05]} gxf2 {[%emt 0:00:46]} 22. Rf1 {[%emt 0:00:05]} e4 {[%emt 0:01:57]} 23. a3 {[%emt 0:03:35]} Nf6 {[%emt 0:07:29]} 24. Rxf2 {[%emt 0:00:08]} Ng4 {[%emt 0:00:13]} 25. Rxf8+ {[%emt 0:00:02]} Rxf8 {[%emt 0:01:48]} 26. Bxg4 {[%emt 0:00:10]} hxg4 {[%emt 0:00:04]} 27. h5 {[%emt 0:00:33]} Kh7 {[%emt 0:02:49]} 28. Kb1 {[%emt 0:01:03]} Qe5 {[%emt 0:01:48]} 29. Ka2 {[%emt 0:01:00]} b5 {[%emt 0:01:29]} 30. h6 {[%emt 0:01:27]} Bh8 {[%emt 0:00:29]} 31. cxb5 {[%emt 0:00:06]} Rb8 {[%emt 0:00:08]} 32. Qf2 {[%emt 0:02:52]} Qf5 {[%emt 0:01:46]} 33. Rf1 {[%emt 0:02:11]} Qxf2 {[%emt 0:03:22]} 34. Rxf2 {[%emt 0:00:02]} Kg6 {[%emt 0:00:51]} 35. Rf4 {[%emt 0:06:22]} Bf5 {[%emt 0:00:25]} 36. Bd2 {[%emt 0:00:36]} Be5 {[%emt 0:00:43]} 37. Rf1 {[%emt 0:00:13]} Bd7 {[%emt 0:01:01]} 38. b6 {[%emt 0:01:33]} Rxb6 {[%emt 0:01:24]} 39. Rf8 {[%emt 0:00:05]} Bb5 {[%emt 0:01:12]} 40. Rg8+ {[%emt 0:00:00]} Kh7 {[%emt 0:00:00]} 41. Rxg4 {[%emt 0:02:05]} Bc4+ {[%emt 0:12:39]} 42. Ka1 {[%emt 0:00:05]} Rb8 {[%emt 0:00:54]} 43. Rxe4 {[%emt 0:02:23]} Bb3 {[%emt 0:00:09]} 44. g4 {[%emt 0:04:07]} Rf8 {[%emt 0:00:37]} 45. Re1 {[%emt 0:00:05]} Rf2 {[%emt 0:11:20]} 46. Bc1 {[%emt 0:08:32]} Kg6 {[%emt 0:01:09]} 47. Rh1 {[%emt 0:00:56]} Rh2 {[%emt 0:01:53]} 48. Rxh2 {[%emt 0:02:47]} Bxh2 {[%emt 0:00:02]} 49. Nb5 {[%emt 0:00:33]} Bxd5 {[%emt 0:00:32]} 50. Nxc7 {[%emt 0:00:05]} Bc4 {[%emt 0:01:01]} 51. g5 {[%emt 0:01:00]} Be5 {[%emt 0:01:25]} 52. Bd2 {[%emt 0:02:34]} Kf7 {[%emt 0:03:12]} 53. Bc3 {[%emt 0:01:00]} Kg6 {[%emt 0:01:47]} 54. Bxe5 {[%emt 0:00:29]} dxe5 {[%emt 0:00:03]} 55. Ne8 {[%emt 0:00:26]} Bd3 {[%emt 0:00:10]} 56. Nf6 {[%emt 0:01:29]} Bc2 {[%emt 0:00:21]} 57. Ka2 {[%emt 0:03:31]} e4 {[%emt 0:01:02]} 58. Ng4 {[%emt 0:00:34]} e3 {[%emt 0:02:01]} 59. Nxe3 {[%emt 0:00:22]} Be4 {[%emt 0:00:04]} 60. Nd1 {[%emt 0:00:18]} Bc2 {[%emt 0:00:52]} 61. Nc3 {[%emt 0:00:16]} Kh7 {[%emt 0:00:48]} 62. Nxa4 {[%emt 0:02:09]} Bxa4 {[%emt 0:00:02]} 63. b4 {[%emt 0:02:14]} Kg6 {[%emt 0:00:05]} 64. Kb2 {[%emt 0:00:04]} Bd7 {[%emt 0:00:31]} 65. Kc3 {[%emt 0:00:05]} Bf5 {[%emt 0:00:09]} 66. b5 {[%emt 0:00:06]} 1-0

[Event "2nd Irena Warakomska Memorial-A"]
[Site "Suwalki"]
[Date "2018.08.03"]
[Round "4"]
[White "Nasuta, Grzegorz"]
[Black "Kowalski, Igor"]
[Result "1-0"]
[ECO "C78"]
[WhiteElo "2497"]
[BlackElo "2294"]
[Annotator "RC"]
[PlyCount "67"]
[EventDate "2018.08.01"]
[EventType "swiss"]
[EventCountry "POL"]
[SourceTitle "playchess.com"]
[Source "ChessBase"]
[SourceQuality "1"]
[TimeControl "40/5400+30:1800+30"]

1. e4 {[%emt 0:00:00]} e5 {[%emt 0:00:00]} 2. Nf3 {[%emt 0:00:03]} Nc6 {[%emt 0:00:00]} 3. Bb5 {[%emt 0:00:21]} a6 {[%emt 0:00:00]} 4. Ba4 {[%emt 0:00:09]} Nf6 {[%emt 0:00:01]} 5. O-O {[%emt 0:00:30]} b5 {[%emt 0:00:06]} 6. Bb3 {[%emt 0:00:07]} Bc5 {[%emt 0:00:03]} 7. a4 {[%emt 0:02:17]} Rb8 {[%emt 0:00:14]} 8. c3 {[%emt 0:06:36]} d6 {[%emt 0:00:05]} 9. d4 {[%emt 0:00:06]} Bb6 {[%emt 0:00:05]} 10. a5 {[%emt 0:03:02]} Ba7 {[%emt 0:00:04]} 11. h3 {[%emt 0:00:16]} O-O {[%emt 0:01:34]} 12. Be3 {[%emt 0:01:30]} Ra8 {[%emt 0:00:29]} 13. Nbd2 {[%emt 0:04:58]} Bb7 {[%emt 0:03:19]} 14. Re1 {[%emt 0:07:54]} h6 {[%emt 0:05:27]} 15. Qb1 {[%emt 0:17:07]} exd4 {[%emt 0:03:10]} 16. cxd4 {[%emt 0:00:38]} Nb4 {[%emt 0:00:21]} 17. e5 {[%emt 0:08:28]} dxe5 {[%emt 0:07:43]} 18. dxe5 {[%emt 0:04:45]} Bxe3 {[%emt 0:00:09]} 19. fxe3 {[%emt 0:14:37]} Nfd5 {[%emt 0:03:07]} 20. Ne4 {[%emt 0:00:08]} Qe7 {[%emt 0:01:49]} 21. Rc1 {[%emt 0:00:07]} Rad8 {[%emt 0:03:29]} 22. Nc5 {[%emt 0:00:07]} Ba8 {[%emt 0:00:51]} 23. Qe4 {[%emt 0:00:29]} Kh8 {[%emt 0:38:23]} 24. Kh1 {[%emt 0:02:15]} g5 {[%emt 0:04:38]} 25. e6 {[%emt 0:08:13]} f6 {[%emt 0:04:02]} 26. Qg6 {[%emt 0:01:30]} Rfe8 {[%emt 0:05:46]} 27. e4 {[%emt 0:01:17]} Nf4 {[%emt 0:02:08]} 28. Qxh6+ {[%emt 0:00:09]} Qh7 {[%emt 0:00:17]} 29. Qxf6+ {[%emt 0:01:11]} Qg7 {[%emt 0:00:05]} 30. Qxg7+ {[%emt 0:04:09]} Kxg7 {[%emt 0:00:05]} 31. Nxg5 {[%emt 0:00:08]} Rd2 {[%emt 0:00:18]} 32. Rf1 {[%emt 0:03:22]} Ne2 {[%emt 0:00:39]} 33. Rf2 {[%emt 0:03:56]} Rxb2 {[%emt 0:00:53]} 34. Re1 {[%emt 0:01:32]} 1-0

[Event "2nd Irena Warakomska Memorial-A"]
[Site "Suwalki"]
[Date "2018.08.03"]
[Round "4"]
[White "Socko, Monika"]
[Black "Sowul, Bartosz"]
[Result "1/2-1/2"]
[ECO "A57"]
[WhiteElo "2466"]
[BlackElo "2257"]
[Annotator "ChessBase"]
[PlyCount "108"]
[EventDate "2018.08.01"]
[EventType "swiss"]
[EventCountry "POL"]
[SourceTitle "playchess.com"]
[Source "ChessBase"]
[SourceQuality "1"]
[TimeControl "40/5400+30:1800+30"]

1. d4 {[%emt 0:00:00]} Nf6 {[%emt 0:00:00]} 2. c4 {[%emt 0:00:00]} c5 {[%emt 0:00:00]} 3. d5 {[%emt 0:00:00]} b5 {[%emt 0:00:00]} 4. cxb5 {[%emt 0:00:04]} a6 {[%emt 0:00:00]} 5. e3 {[%emt 0:00:42]} g6 {[%emt 0:00:04]} 6. Nc3 {[%emt 0:00:37]} Bg7 {[%emt 0:00:09]} 7. Nf3 {[%emt 0:00:32]} O-O {[%emt 0:00:07]} 8. a4 {[%emt 0:01:59]} Bb7 {[%emt 0:01:33]} 9. bxa6 {[%emt 0:02:35]} Nxa6 {[%emt 0:01:34]} 10. Bc4 {[%emt 0:00:06]} e6 {[%emt 0:03:06]} 11. O-O {[%emt 0:10:20]} Nb4 {[%emt 0:06:24]} 12. e4 {[%emt 0:02:43]} exd5 {[%emt 0:01:38]} 13. exd5 {[%emt 0:00:05]} d6 {[%emt 0:01:00]} 14. Re1 {[%emt 0:05:02]} Ba6 {[%emt 0:08:00]} 15. Bxa6 {[%emt 0:08:12]} Rxa6 {[%emt 0:00:08]} 16. Bf4 {[%emt 0:05:06]} Qd7 {[%emt 0:08:25]} 17. Bg3 {[%emt 0:12:05]} Qf5 {[%emt 0:07:54]} 18. Nh4 {[%emt 0:04:25]} Qc8 {[%emt 0:08:13]} 19. Qd2 {[%emt 0:01:19]} c4 {[%emt 0:02:30]} 20. Nf3 {[%emt 0:06:25]} Qc5 {[%emt 0:05:50]} 21. Red1 {[%emt 0:05:46]} Rb8 {[%emt 0:08:27]} 22. Ne1 {[%emt 0:04:08]} Re8 {[%emt 0:09:41]} 23. Kf1 {[%emt 0:00:48]} Nh5 {[%emt 0:03:35]} 24. Rac1 {[%emt 0:03:31]} Qa5 {[%emt 0:16:52]} 25. Nb5 {[%emt 0:03:52]} Nxg3+ {[%emt 0:05:34]} 26. hxg3 {[%emt 0:00:09]} Rc8 {[%emt 0:00:10]} 27. b3 {[%emt 0:03:00]} Rc5 {[%emt 0:01:41]} 28. Rxc4 {[%emt 0:05:11]} Rxc4 {[%emt 0:00:23]} 29. bxc4 {[%emt 0:00:01]} Qxa4 {[%emt 0:00:08]} 30. Rb1 {[%emt 0:00:58]} Na2 {[%emt 0:00:29]} 31. Qc2 {[%emt 0:00:13]} Qa5 {[%emt 0:01:17]} 32. Nf3 {[%emt 0:01:14]} h6 {[%emt 0:00:26]} 33. Kg1 {[%emt 0:01:16]} Kh7 {[%emt 0:00:29]} 34. Qd3 {[%emt 0:02:05]} Nc3 {[%emt 0:00:33]} 35. Nxc3 {[%emt 0:01:05]} Qxc3 {[%emt 0:00:21]} 36. Qxc3 {[%emt 0:02:06]} Bxc3 {[%emt 0:00:07]} 37. Rc1 {[%emt 0:00:02]} Bb2 {[%emt 0:00:56]} 38. Rc2 {[%emt 0:01:00]} Ra1+ {[%emt 0:00:14]} 39. Kh2 {[%emt 0:00:01]} Ba3 {[%emt 0:00:10]} 40. Nd2 {[%emt 0:00:00]} h5 {[%emt 0:00:00]} 41. Ne4 {[%emt 0:02:32]} Re1 {[%emt 0:02:24]} 42. f3 {[%emt 0:05:08]} Kg7 {[%emt 0:07:28]} 43. Ra2 {[%emt 0:07:53]} Bc1 {[%emt 0:10:28]} 44. g4 {[%emt 0:05:20]} hxg4 {[%emt 0:03:49]} 45. Kg3 {[%emt 0:00:21]} gxf3 {[%emt 0:00:55]} 46. gxf3 {[%emt 0:00:12]} g5 {[%emt 0:01:00]} 47. Nxd6 {[%emt 0:05:49]} Bf4+ {[%emt 0:02:12]} 48. Kf2 {[%emt 0:00:02]} Rc1 {[%emt 0:01:41]} 49. Nf5+ {[%emt 0:04:30]} Kf6 {[%emt 0:00:51]} 50. Nh6 {[%emt 0:01:03]} Rxc4 {[%emt 0:02:58]} 51. Ra6+ {[%emt 0:00:43]} Ke5 {[%emt 0:00:42]} 52. d6 {[%emt 0:00:47]} Ke6 {[%emt 0:01:12]} 53. d7+ {[%emt 0:00:55]} Kxd7 {[%emt 0:00:06]} 54. Nxf7 {[%emt 0:00:08]} Rc2+ {[%emt 0:00:53]} 1/2-1/2

[Event "2nd Irena Warakomska Memorial-A"]
[Site "Suwalki"]
[Date "2018.08.03"]
[Round "4"]
[White "Gumularz, Szymon"]
[Black "Dmochowska, Agnieszka"]
[Result "1-0"]
[ECO "A45"]
[WhiteElo "2458"]
[BlackElo "2096"]
[Annotator "RC"]
[PlyCount "67"]
[EventDate "2018.08.01"]
[EventType "swiss"]
[EventCountry "POL"]
[SourceTitle "playchess.com"]
[Source "ChessBase"]
[SourceQuality "1"]
[TimeControl "40/5400+30:1800+30"]

1. d4 {[%emt 0:00:00]} Nf6 {[%emt 0:02:38]} 2. Bf4 {[%emt 0:00:00]} e6 {[%emt 0:00:44]} 3. e3 {[%emt 0:00:00]} Be7 {[%emt 0:01:22]} 4. h3 {[%emt 0:00:21]} d5 {[%emt 0:05:13]} 5. Nf3 {[%emt 0:00:13]} b6 {[%emt 0:02:13]} 6. Bd3 {[%emt 0:01:34]} Bb7 {[%emt 0:01:19]} 7. Nbd2 {[%emt 0:00:14]} Nbd7 {[%emt 0:00:51]} 8. c3 {[%emt 0:01:04]} c5 {[%emt 0:04:07]} 9. O-O {[%emt 0:00:06]} O-O {[%emt 0:00:09]} 10. a4 {[%emt 0:00:02]} a6 {[%emt 0:03:54]} 11. Qe2 {[%emt 0:00:05]} Ne4 {[%emt 0:08:57]} 12. Rfd1 {[%emt 0:00:15]} c4 {[%emt 0:17:12]} 13. Bc2 {[%emt 0:01:13]} b5 {[%emt 0:00:25]} 14. Nxe4 {[%emt 0:00:37]} dxe4 {[%emt 0:00:10]} 15. Nd2 {[%emt 0:00:01]} Nf6 {[%emt 0:00:37]} 16. Bg5 {[%emt 0:00:28]} Qd7 {[%emt 0:05:35]} 17. Bxf6 {[%emt 0:00:09]} Bxf6 {[%emt 0:01:05]} 18. Bxe4 {[%emt 0:00:04]} Rfc8 {[%emt 0:02:19]} 19. Qf3 {[%emt 0:00:24]} Rab8 {[%emt 0:01:59]} 20. axb5 {[%emt 0:00:22]} Qxb5 {[%emt 0:01:36]} 21. Rdb1 {[%emt 0:02:33]} Bxe4 {[%emt 0:01:02]} 22. Qxe4 {[%emt 0:00:20]} a5 {[%emt 0:06:15]} 23. b3 {[%emt 0:00:42]} cxb3 {[%emt 0:00:57]} 24. Nxb3 {[%emt 0:00:11]} Qc4 {[%emt 0:02:38]} 25. Nxa5 {[%emt 0:01:20]} Rxb1+ {[%emt 0:01:01]} 26. Rxb1 {[%emt 0:00:33]} Qxc3 {[%emt 0:00:08]} 27. Nb3 {[%emt 0:00:49]} Rd8 {[%emt 0:05:36]} 28. Nc5 {[%emt 0:01:09]} g6 {[%emt 0:05:28]} 29. Qf4 {[%emt 0:00:48]} Qc2 {[%emt 0:05:20]} 30. Rb7 {[%emt 0:00:55]} Qf5 {[%emt 0:01:06]} 31. Qc7 {[%emt 0:00:37]} Rf8 {[%emt 0:02:17]} 32. Nd7 {[%emt 0:00:27]} Bd8 {[%emt 0:03:33]} 33. Qc6 {[%emt 0:00:32]} Bh4 {[%emt 0:04:10]} 34. g3 {[%emt 0:00:48]} 1-0

[Event "2nd Irena Warakomska Memorial-A"]
[Site "Suwalki"]
[Date "2018.08.03"]
[Round "4"]
[White "Tihonov, Jurij"]
[Black "Lewtak, Dominik"]
[Result "1-0"]
[ECO "A05"]
[WhiteElo "2385"]
[BlackElo "2177"]
[Annotator "NA"]
[PlyCount "83"]
[EventDate "2018.08.01"]
[EventType "swiss"]
[EventCountry "POL"]
[SourceTitle "playchess.com"]
[Source "ChessBase"]
[SourceQuality "1"]
[TimeControl "40/5400+30:1800+30"]

1. Nf3 {[%emt 0:00:00]} Nf6 {[%emt 0:00:00]} 2. c4 {[%emt 0:01:21]} e6 {[%emt 0:00:14]} 3. Nc3 {[%emt 0:01:11]} d5 {[%emt 0:00:14]} 4. e3 {[%emt 0:01:19]} Nbd7 {[%emt 0:01:00]} 5. b3 {[%emt 0:01:16]} c6 {[%emt 0:01:18]} 6. Bb2 {[%emt 0:00:23]} Be7 {[%emt 0:00:18]} 7. g4 {[%emt 0:17:03]} h6 {[%emt 0:02:35]} 8. Rg1 {[%emt 0:03:19]} e5 {[%emt 0:05:42]} 9. cxd5 {[%emt 0:08:13]} cxd5 {[%emt 0:01:08]} 10. h4 {[%emt 0:08:49]} e4 {[%emt 0:04:53]} 11. g5 {[%emt 0:04:32]} exf3 {[%emt 0:05:00]} 12. gxf6 {[%emt 0:01:37]} Bxf6 {[%emt 0:00:06]} 13. Qxf3 {[%emt 0:11:15]} Ne5 {[%emt 0:01:49]} 14. Bb5+ {[%emt 0:00:07]} Kf8 {[%emt 0:09:19]} 15. Qf4 {[%emt 0:02:47]} g5 {[%emt 0:04:24]} 16. hxg5 {[%emt 0:01:43]} hxg5 {[%emt 0:00:15]} 17. Ba3+ {[%emt 0:04:17]} Kg7 {[%emt 0:03:43]} 18. O-O-O {[%emt 0:04:15]} Ng6 {[%emt 0:05:15]} 19. Qf3 {[%emt 0:02:59]} Be6 {[%emt 0:00:54]} 20. Bb2 {[%emt 0:00:31]} Rc8 {[%emt 0:08:10]} 21. Kb1 {[%emt 0:01:38]} a6 {[%emt 0:12:42]} 22. Bf1 {[%emt 0:05:59]} g4 {[%emt 0:05:45]} 23. Rxg4 {[%emt 0:04:33]} Bxg4 {[%emt 0:00:38]} 24. Qxg4 {[%emt 0:00:01]} b5 {[%emt 0:02:35]} 25. Bd3 {[%emt 0:01:39]} Rh4 {[%emt 0:03:02]} 26. Qf5 {[%emt 0:01:30]} b4 {[%emt 0:01:50]} 27. Nxd5 {[%emt 0:00:42]} Bxb2 {[%emt 0:01:28]} 28. Kxb2 {[%emt 0:00:04]} Rc5 {[%emt 0:02:29]} 29. Bc4 {[%emt 0:00:36]} Rhxc4 {[%emt 0:00:14]} 30. bxc4 {[%emt 0:00:06]} Rxc4 {[%emt 0:00:06]} 31. Rg1 {[%emt 0:05:02]} Rc5 {[%emt 0:04:16]} 32. e4 {[%emt 0:02:10]} Qa5 {[%emt 0:01:05]} 33. Qf6+ {[%emt 0:02:17]} Kf8 {[%emt 0:00:07]} 34. Qd6+ {[%emt 0:01:00]} Kg7 {[%emt 0:00:28]} 35. Kb1 {[%emt 0:01:41]} b3 {[%emt 0:01:02]} 36. axb3 {[%emt 0:00:19]} Qb5 {[%emt 0:02:24]} 37. Qf6+ {[%emt 0:00:58]} Kf8 {[%emt 0:00:14]} 38. Qd6+ {[%emt 0:00:42]} Kg7 {[%emt 0:00:05]} 39. Kb2 {[%emt 0:00:43]} a5 {[%emt 0:00:46]} 40. Qf6+ {[%emt 0:00:00]} Kf8 {[%emt 0:00:00]} 41. Rxg6 {[%emt 0:00:44]} a4 {[%emt 0:02:57]} 42. Qe7# {[%emt 0:03:11]} 1-0

[Event "2nd Irena Warakomska Memorial-A"]
[Site "Suwalki"]
[Date "2018.08.03"]
[Round "4"]
[White "Lewtak, Damian"]
[Black "Czarnota, Pawel"]
[Result "1/2-1/2"]
[ECO "B51"]
[WhiteElo "2369"]
[BlackElo "2548"]
[Annotator "RC"]
[PlyCount "98"]
[EventDate "2018.08.01"]
[EventType "swiss"]
[EventCountry "POL"]
[SourceTitle "playchess.com"]
[Source "ChessBase"]
[SourceQuality "1"]
[TimeControl "40/5400+30:1800+30"]

1. e4 {[%emt 0:00:00]} c5 {[%emt 0:00:27]} 2. Nf3 {[%emt 0:00:00]} d6 {[%emt 0:00:32]} 3. Bb5+ {[%emt 0:00:00]} Nd7 {[%emt 0:00:25]} 4. O-O {[%emt 0:00:30]} a6 {[%emt 0:00:17]} 5. Bxd7+ {[%emt 0:00:22]} Bxd7 {[%emt 0:00:07]} 6. c3 {[%emt 0:02:32]} Nf6 {[%emt 0:01:30]} 7. Re1 {[%emt 0:00:13]} e6 {[%emt 0:01:27]} 8. d4 {[%emt 0:01:12]} cxd4 {[%emt 0:00:44]} 9. cxd4 {[%emt 0:00:11]} d5 {[%emt 0:02:58]} 10. e5 {[%emt 0:00:09]} Ne4 {[%emt 0:00:39]} 11. Nbd2 {[%emt 0:00:32]} Nxd2 {[%emt 0:00:32]} 12. Bxd2 {[%emt 0:00:23]} Be7 {[%emt 0:00:16]} 13. Qb3 {[%emt 0:00:55]} Bc6 {[%emt 0:00:56]} 14. Bb4 {[%emt 0:03:34]} Qb6 {[%emt 0:02:44]} 15. Bxe7 {[%emt 0:00:09]} Qxb3 {[%emt 0:00:05]} 16. axb3 {[%emt 0:00:04]} Kxe7 {[%emt 0:00:06]} 17. Rec1 {[%emt 0:00:18]} Rhc8 {[%emt 0:01:15]} 18. Kf1 {[%emt 0:02:22]} h6 {[%emt 0:02:16]} 19. Ke1 {[%emt 0:02:07]} Bb5 {[%emt 0:02:00]} 20. Kd2 {[%emt 0:04:46]} Kd7 {[%emt 0:02:30]} 21. Rxc8 {[%emt 0:02:03]} Rxc8 {[%emt 0:00:09]} 22. Rc1 {[%emt 0:00:10]} Rxc1 {[%emt 0:03:32]} 23. Kxc1 {[%emt 0:00:44]} Bf1 {[%emt 0:00:09]} 24. Ne1 {[%emt 0:00:42]} f5 {[%emt 0:12:02]} 25. exf6 {[%emt 0:05:16]} gxf6 {[%emt 0:00:06]} 26. f4 {[%emt 0:00:28]} e5 {[%emt 0:01:31]} 27. fxe5 {[%emt 1:04:29]} fxe5 {[%emt 0:03:57]} 28. Kd2 {[%emt 0:03:39]} exd4 {[%emt 0:00:50]} 29. g4 {[%emt 0:01:25]} Kd6 {[%emt 0:02:35]} 30. h4 {[%emt 0:02:02]} Bh3 {[%emt 0:02:39]} 31. g5 {[%emt 0:00:18]} hxg5 {[%emt 0:00:06]} 32. hxg5 {[%emt 0:00:14]} Bf5 {[%emt 0:00:16]} 33. b4 {[%emt 0:03:31]} Be4 {[%emt 0:01:54]} 34. Nd3 {[%emt 0:00:58]} b6 {[%emt 0:00:06]} 35. Ne1 {[%emt 0:00:40]} Ke5 {[%emt 0:09:01]} 36. Nc2 {[%emt 0:00:09]} Bg6 {[%emt 0:00:15]} 37. Na1 {[%emt 0:00:22]} Ke4 {[%emt 0:09:19]} 38. Nb3 {[%emt 0:00:30]} d3 {[%emt 0:00:43]} 39. Nc1 {[%emt 0:00:16]} Kd4 {[%emt 0:00:08]} 40. b3 {[%emt 0:00:00]} Be4 {[%emt 0:00:00]} 41. Na2 {[%emt 0:01:36]} Ke5 {[%emt 0:08:22]} 42. Nc1 {[%emt 0:09:37]} Kd4 {[%emt 0:02:18]} 43. Na2 {[%emt 0:00:06]} Bf5 {[%emt 0:00:09]} 44. Nc1 {[%emt 0:01:10]} a5 {[%emt 0:00:50]} 45. Na2 {[%emt 0:02:08]} Bg6 {[%emt 0:04:34]} 46. bxa5 {[%emt 0:03:23]} bxa5 {[%emt 0:00:36]} 47. b4 {[%emt 0:00:05]} a4 {[%emt 0:01:54]} 48. Nc3 {[%emt 0:00:06]} a3 {[%emt 0:01:39]} 49. Nb5+ {[%emt 0:00:07]} Ke5 1/2-1/2

[Event "2nd Irena Warakomska Memorial-A"]
[Site "Suwalki"]
[Date "2018.08.03"]
[Round "4"]
[White "Punin, Andrii"]
[Black "Kokoszczynski, Jan"]
[Result "1/2-1/2"]
[ECO "A35"]
[WhiteElo "2339"]
[BlackElo "2187"]
[Annotator "NA"]
[PlyCount "61"]
[EventDate "2018.08.01"]
[EventType "swiss"]
[EventCountry "POL"]
[SourceTitle "playchess.com"]
[Source "ChessBase"]
[SourceQuality "1"]
[TimeControl "40/5400+30:1800+30"]

1. Nf3 {[%emt 0:00:00]} Nf6 {[%emt 0:00:00]} 2. c4 {[%emt 0:00:00]} c5 {[%emt 0:00:38]} 3. Nc3 {[%emt 0:00:00]} Nc6 {[%emt 0:00:04]} 4. e3 {[%emt 0:00:04]} e6 {[%emt 0:03:35]} 5. a3 {[%emt 0:00:23]} d5 {[%emt 0:01:34]} 6. d4 {[%emt 0:00:07]} cxd4 {[%emt 0:03:25]} 7. exd4 {[%emt 0:00:07]} Be7 {[%emt 0:01:31]} 8. c5 {[%emt 0:05:07]} a5 {[%emt 0:02:59]} 9. Bf4 {[%emt 0:02:49]} O-O {[%emt 0:03:53]} 10. Bb5 {[%emt 0:03:03]} Bd7 {[%emt 0:04:59]} 11. O-O {[%emt 0:04:51]} Ne4 {[%emt 0:01:34]} 12. h3 {[%emt 0:03:25]} b6 {[%emt 0:06:51]} 13. Qd3 {[%emt 0:11:08]} bxc5 {[%emt 0:11:35]} 14. Nxe4 {[%emt 0:00:33]} dxe4 {[%emt 0:00:25]} 15. Qxe4 {[%emt 0:00:08]} Nxd4 {[%emt 0:01:28]} 16. Nxd4 {[%emt 0:00:43]} cxd4 {[%emt 0:00:03]} 17. Bd3 {[%emt 0:00:20]} g6 {[%emt 0:00:42]} 18. Be5 {[%emt 0:05:47]} Bf6 {[%emt 0:04:53]} 19. Qxd4 {[%emt 0:01:09]} Bxe5 {[%emt 0:17:52]} 20. Qxe5 {[%emt 0:00:20]} Qb8 {[%emt 0:00:13]} 21. Qf6 {[%emt 0:03:09]} Bb5 {[%emt 0:02:09]} 22. Rad1 {[%emt 0:02:30]} Rd8 {[%emt 0:01:40]} 23. Bxb5 {[%emt 0:00:17]} Rxd1 {[%emt 0:00:02]} 24. Rxd1 {[%emt 0:00:11]} Qxb5 {[%emt 0:00:01]} 25. Rd8+ {[%emt 0:02:01]} Rxd8 {[%emt 0:00:33]} 26. Qxd8+ {[%emt 0:00:14]} Kg7 {[%emt 0:00:01]} 27. Qd4+ {[%emt 0:01:22]} e5 {[%emt 0:00:03]} 28. a4 {[%emt 0:09:10]} Qe2 {[%emt 0:00:18]} 29. Qc3 {[%emt 0:02:05]} Qd1+ {[%emt 0:00:16]} 30. Kh2 {[%emt 0:00:04]} Qxa4 {[%emt 0:00:18]} 31. Qxe5+ {[%emt 0:00:05]} 1/2-1/2